fUSD/lending_fUSD_20250602
["ID","MTS","AMOUNT","RATE_DAILY","PERIOD"]
[363778586,1748868654229,-420.0,0.00019452,2]
[363778587,1748868654239,-420.0,0.00019452,2]
[363778588,1748868654248,-420.0,0.00019452,2]
[363778589,1748868654259,-420.0,0.00019452,2]
[363778590,1748868654269,-539.71625004,0.00019452,2]
[363778591,1748868654279,-180.85006672,0.00019452,2]
[363778592,1748868654289,-420.0,0.00019452,2]
[363778593,1748868654299,-420.0,0.00019452,2]
[363778594,1748868654308,-420.0,0.00019452,2]
[363778595,1748868654318,-420.0,0.00019452,2]
[363778596,1748868654328,-883.87,0.00019452,2]
[363778597,1748868654338,-420.0,0.00019452,2]
[363778598,1748868654348,-420.0,0.00019452,2]
[363778599,1748868654358,-420.0,0.00019452,2]
[363778600,1748868654367,-420.0,0.00019452,2]
[363778601,1748868654377,-389.51217895,0.00019452,2]
[363778602,1748868654388,-420.0,0.00019452,2]
[363778603,1748868654398,-420.0,0.00019452,2]
[363778604,1748868654408,-420.0,0.00019452,2]
[363778605,1748868654417,-420.0,0.00019452,2]
[363778606,1748868654427,-420.0,0.00019452,2]
[363778607,1748868654437,-448.9,0.00019452,2]
[363778608,1748868654447,-450.84514838,0.00019452,2]
[363778609,1748868654457,-420.0,0.00019452,2]
[363778610,1748868654467,-420.0,0.00019452,2]
[363778611,1748868654476,-420.0,0.00019452,2]
[363778612,1748868654486,-420.0,0.00019452,2]
[363778613,1748868654495,-420.0,0.00019452,2]
[363778614,1748868654505,-420.0,0.00019452,2]
[363778615,1748868654515,-423.78,0.00019452,2]
[363778616,1748868654525,-420.0,0.00019452,2]
[363778617,1748868654534,-420.0,0.00019452,2]
[363778618,1748868654543,-420.0,0.00019452,2]
[363778619,1748868654553,-420.0,0.00019452,2]
[363778620,1748868654562,-420.0,0.00019452,2]
[363778621,1748868654572,-420.0,0.00019452,2]
[363778622,1748868654581,-420.0,0.00019452,2]
[363778623,1748868654590,-420.0,0.00019452,2]
[363778624,1748868654599,-336.6243349,0.00019452,2]
[363778625,1748868654608,-420.0,0.00019452,2]
[363778626,1748868654617,-420.0,0.00019452,2]
[363778627,1748868654626,-420.0,0.00019452,2]
[363778628,1748868654637,-420.0,0.00019452,2]
[363778629,1748868654646,-420.0,0.00019452,2]
[363778630,1748868654656,-420.0,0.00019452,2]
[363778631,1748868654665,-420.0,0.00019452,2]
[363778632,1748868654675,-420.0,0.00019452,2]
[363778633,1748868654684,-420.0,0.00019452,2]
[363778634,1748868654693,-420.0,0.00019452,2]
[363778635,1748868654702,-420.0,0.00019452,2]
[363778636,1748868654711,-420.0,0.00019452,2]
[363778637,1748868654721,-420.0,0.00019452,2]
[363778638,1748868654730,-1174.57,0.00019452,2]
[363778639,1748868654740,-568.67626722,0.00019452,2]
[363778640,1748868654750,-420.0,0.00019452,2]
[363778641,1748868654760,-1170.95,0.00019452,2]
[363778642,1748868654770,-758.5,0.00019452,2]
[363778643,1748868654779,-420.0,0.00019452,2]
[363778644,1748868654789,-420.0,0.00019452,2]
[363778645,1748868654798,-420.0,0.00019452,2]
[363778646,1748868654808,-420.0,0.00019452,2]
[363778647,1748868654819,-4562.65,0.00019452,2]
[363778648,1748868654830,-420.0,0.00019452,2]
[363778649,1748868654840,-356.21,0.00019452,2]
[363778650,1748868654849,-1744.68,0.00019452,2]
[363778651,1748868654861,-541.9,0.00019452,2]
[363778652,1748868654870,-420.0,0.00019452,2]
[363778653,1748868654880,-1175.3,0.00019452,2]
[363778654,1748868654890,-9032.26,0.00019452,2]
[363778655,1748868654902,-420.0,0.00019452,2]
[363778656,1748868654912,-420.0,0.00019452,2]
[363778657,1748868654922,-1114.81,0.00019452,2]
[363778658,1748868654932,-536.53,0.00019452,2]
[363778659,1748868654941,-4177.71,0.00019452,2]
[363778660,1748868654952,-420.0,0.00019452,2]
[363778661,1748868654962,-551.63,0.00019452,2]
[363778662,1748868654970,-420.0,0.00019452,2]
[363778663,1748868654979,-996.0,0.00019452,2]
[363778664,1748868654988,-420.0,0.00019452,2]
[363778665,1748868654996,-504.81,0.00019452,2]
[363778666,1748868655005,-716.31,0.00019452,2]
[363778667,1748868655014,-420.0,0.00019452,2]
[363778668,1748868655023,-420.0,0.00019452,2]
[363778669,1748868655032,-420.0,0.00019452,2]
[363778670,1748868655042,-420.0,0.00019452,2]
[363778671,1748868655052,-420.0,0.00019452,2]
[363778672,1748868655062,-420.0,0.00019452,2]
[363778673,1748868655071,-420.0,0.00019452,2]
[363778674,1748868655081,-755.86,0.00019452,2]
[363778675,1748868655091,-929.45,0.00019452,2]
[363778676,1748868655102,-420.0,0.00019452,2]
[363778677,1748868655112,-538.48,0.00019452,2]
[363778678,1748868655123,-420.0,0.00019452,2]
[363778679,1748868655133,-420.0,0.00019452,2]
[363778680,1748868655143,-349.51025287,0.00019452,2]
[363778681,1748868655154,-420.0,0.00019452,2]
[363778682,1748868655165,-1041.38,0.00019452,2]
[363778683,1748868655175,-1475.64,0.00019452,2]
[363778684,1748868655185,-420.0,0.00019452,2]
[363778685,1748868655194,-276.34932782,0.00019452,2]
[363778686,1748868655204,-420.0,0.00019452,2]
[363778687,1748868655215,-420.0,0.00019452,2]
[363778688,1748868655224,-420.0,0.00019452,2]
[363778689,1748868655234,-420.0,0.00019452,2]
[363778690,1748868655244,-420.0,0.00019452,2]
[363778691,1748868655254,-420.0,0.00019452,2]
[363778692,1748868655264,-614.15,0.00019452,2]
[363778693,1748868655274,-420.0,0.00019452,2]
[363778694,1748868655283,-420.0,0.00019452,2]
[363778695,1748868655293,-352.65136954,0.00019452,2]
[363778696,1748868655303,-420.0,0.00019452,2]
[363778697,1748868655312,-666.38,0.00019452,2]
[363778698,1748868655322,-420.0,0.00019452,2]
[363778699,1748868655332,-420.0,0.00019452,2]
[363778700,1748868655341,-420.0,0.00019452,2]
[363778701,1748868655351,-420.0,0.00019452,2]
[363778702,1748868655361,-420.0,0.00019452,2]
[363778703,1748868655371,-420.0,0.00019452,2]
[363778704,1748868655381,-447.64117962,0.00019452,2]
[363778705,1748868655390,-768.88,0.00019452,2]
[363778706,1748868655399,-629.3,0.00019452,2]
[363778707,1748868655409,-420.0,0.00019452,2]
[363778708,1748868655420,-1774.49,0.00019452,2]
[363778709,1748868655431,-420.0,0.00019452,2]
[363778710,1748868655441,-420.0,0.00019452,2]
[363778711,1748868655451,-420.0,0.00019452,2]
[363778712,1748868655460,-420.0,0.00019452,2]
[363778713,1748868655470,-792.24,0.00019452,2]
[363778714,1748868655480,-420.0,0.00019452,2]
[363778715,1748868655490,-420.0,0.00019452,2]
[363778716,1748868655500,-420.0,0.00019452,2]
[363778717,1748868655510,-420.0,0.00019452,2]
[363778718,1748868655519,-520.88,0.00019452,2]
[363778719,1748868655586,-551.97,0.00019452,2]
[363778720,1748868655596,-420.0,0.00019452,2]
[363778721,1748868655606,-420.0,0.00019452,2]
[363778722,1748868655616,-420.0,0.00019452,2]
[363778723,1748868655626,-420.0,0.00019452,2]
[363778724,1748868655636,-420.0,0.00019452,2]
[363778725,1748868655646,-420.0,0.00019452,2]
[363778726,1748868655656,-420.0,0.00019452,2]
[363778727,1748868655666,-420.0,0.00019452,2]
[363778728,1748868655676,-420.0,0.00019452,2]
[363778729,1748868655686,-420.0,0.00019452,2]
[363778730,1748868655696,-526.69461084,0.00019452,2]
[363778731,1748868655707,-420.0,0.00019452,2]
[363778732,1748868655717,-630.76,0.00019452,2]
[363778733,1748868655727,-3392.49,0.00019452,2]
[363778734,1748868655737,-482.48,0.00019452,2]
[363778735,1748868655747,-420.0,0.00019452,2]
[363778736,1748868655757,-420.0,0.00019452,2]
[363778737,1748868655767,-420.0,0.00019452,2]
[363778738,1748868655777,-429.5,0.00019452,2]
[363778739,1748868655786,-420.0,0.00019452,2]
[363778740,1748868655796,-420.0,0.00019452,2]
[363778741,1748868655806,-420.0,0.00019452,2]
[363778742,1748868655817,-420.0,0.00019452,2]
[363778743,1748868655830,-580.65,0.00019452,2]
[363778744,1748868655841,-420.0,0.00019452,2]
[363778745,1748868655851,-552.11376907,0.00019452,2]
[363778746,1748868655863,-420.0,0.00019452,2]
[363778747,1748868655872,-420.0,0.00019452,2]
[363778748,1748868655882,-790.0,0.00019452,2]
[363778749,1748868655892,-420.0,0.00019452,2]
[363778750,1748868655904,-468.55,0.00019452,2]
[363778751,1748868655914,-936.76,0.00019452,2]
[363778752,1748868655924,-1765.14,0.00019452,2]
[363778753,1748868655934,-420.0,0.00019452,2]
[363778754,1748868655944,-1401.04,0.00019452,2]
[363778755,1748868655954,-498.84,0.00019452,2]
[363778756,1748868655964,-420.0,0.00019452,2]
[363778757,1748868655974,-420.0,0.00019452,2]
[363778758,1748868655984,-420.0,0.00019452,2]
[363778759,1748868655995,-420.0,0.00019452,2]
[363778760,1748868656006,-420.0,0.00019452,2]
[363778761,1748868656017,-420.0,0.00019452,2]
[363778762,1748868656027,-579.01,0.00019452,2]
[363778763,1748868656037,-420.0,0.00019452,2]
[363778764,1748868656048,-2331.26,0.00019452,2]
[363778765,1748868656058,-420.0,0.00019452,2]
[363778766,1748868656067,-573.08,0.00019452,2]
[363778767,1748868656078,-844.27,0.00019452,2]
[363778768,1748868656088,-1309.79,0.00019452,2]
[363778769,1748868656097,-420.0,0.00019452,2]
[363778770,1748868656107,-2934.36,0.00019452,2]
[363778771,1748868656117,-1763.08,0.00019452,2]
[363778772,1748868656127,-420.0,0.00019452,2]
[363778773,1748868656138,-206.74725981,0.00019452,2]
[363778774,1748868656149,-420.0,0.00019452,2]
[363778775,1748868656160,-362.26047882,0.00019452,2]
[363778776,1748868656170,-420.0,0.00019452,2]
[363778777,1748868656181,-2355.75,0.00019452,2]
[363778778,1748868656191,-472.44197213,0.00019452,2]
[363778779,1748868656200,-420.0,0.00019452,2]
[363778780,1748868656210,-420.0,0.00019452,2]
[363778781,1748868656221,-420.0,0.00019452,2]
[363778782,1748868656230,-1326.49,0.00019452,2]
[363778783,1748868656241,-420.0,0.00019452,2]
[363778784,1748868656251,-420.0,0.00019452,2]
[363778785,1748868656261,-420.0,0.00019452,2]
[363778786,1748868656271,-420.0,0.00019452,2]
[363778787,1748868656281,-420.0,0.00019452,2]
[363778788,1748868656292,-420.0,0.00019452,2]
[363778789,1748868656301,-1329.42,0.00019452,2]
[363778790,1748868656312,-420.0,0.00019452,2]
[363778791,1748868656321,-420.0,0.00019452,2]
[363778792,1748868656331,-420.0,0.00019452,2]
[363778793,1748868656341,-913.78,0.00019452,2]
[363778794,1748868656351,-420.0,0.00019452,2]
[363778795,1748868656361,-420.0,0.00019452,2]
[363778796,1748868656371,-2903.51,0.00019452,2]
[363778797,1748868656383,-534.17,0.00019452,2]
[363778798,1748868656393,-675.23,0.00019452,2]
[363778799,1748868656404,-420.0,0.00019452,2]
[363778800,1748868656414,-420.0,0.00019452,2]
[363778801,1748868656424,-1161.16,0.00019452,2]
[363778802,1748868656434,-420.0,0.00019452,2]
[363778803,1748868656444,-693.48,0.00019452,2]
[363778804,1748868656453,-428.82,0.00019452,2]
[363778805,1748868656465,-3113.02,0.00019452,2]
[363778806,1748868656474,-420.0,0.00019452,2]
[363778807,1748868656484,-420.0,0.00019452,2]
[363778808,1748868656493,-581.6,0.00019452,2]
[363778809,1748868656502,-420.0,0.00019452,2]
[363778810,1748868656512,-448.42,0.00019452,2]
[363778811,1748868656522,-972.65,0.00019452,2]
[363778812,1748868656532,-593.57,0.00019452,2]
[363778813,1748868656541,-420.0,0.00019452,2]
[363778814,1748868656550,-420.0,0.00019452,2]
[363778815,1748868656560,-614.98,0.00019452,2]
[363778816,1748868656570,-420.0,0.00019452,2]
[363778817,1748868656579,-420.0,0.00019452,2]
[363778818,1748868656589,-420.0,0.00019452,2]
[363778819,1748868656599,-420.0,0.00019452,2]
[363778820,1748868656610,-659.87,0.00019452,2]
[363778821,1748868656620,-420.0,0.00019452,2]
[363778822,1748868656631,-420.0,0.00019452,2]
[363778823,1748868656642,-1440.83,0.00019452,2]
[363778824,1748868656653,-1078.33,0.00019452,2]
[363778825,1748868656664,-420.0,0.00019452,2]
[363778826,1748868656674,-150.0,0.00019452,2]
[363778827,1748868656684,-150.0,0.00019452,2]
[363778828,1748868656694,-500.0,0.00019479,2]
[363778829,1748868656704,-500.0,0.00019479,2]
[363778830,1748868656713,-500.0,0.00019479,2]
[363778831,1748868656723,-500.0,0.00019479,2]
[363778832,1748868656733,-263.51067791,0.00019479,2]
[363778833,1748868656743,-500.0,0.00019479,2]
[363778834,1748868656753,-500.0,0.00019479,2]
[363778835,1748868656763,-2110.0,0.00019479,2]
[363778836,1748868656773,-366.13367363,0.00019489,2]
[363778837,1748868656784,-487.30933952,0.00019489,2]
[363778838,1748868656793,-254.0,0.00019489,2]
[363778839,1748868656801,-150.0,0.000195,4]
[363778840,1748868656811,-2300.0,0.000195,7]
[363778841,1748868656821,-487.33682505,0.00019507,2]
[363778842,1748868656832,-500.0,0.00019507,2]
[363778843,1748868656841,-500.0,0.00019507,2]
[363778844,1748868656850,-500.0,0.00019507,2]
[363778845,1748868656859,-500.0,0.00019507,2]
[363778846,1748868656869,-500.0,0.00019507,2]
[363778847,1748868656878,-2110.0,0.00019507,2]
[363778848,1748868656889,-500.0,0.00019534,2]
[363778849,1748868656899,-500.0,0.00019534,2]
[363778850,1748868656909,-500.0,0.00019534,2]
[363778851,1748868656918,-500.0,0.00019534,2]
[363778852,1748868656927,-500.0,0.00019534,2]
[363778853,1748868656936,-2110.0,0.00019534,2]
[363778854,1748868656946,-2255.10096463,0.00019535,2]
[363778855,1748868656956,-500.0,0.00019562,2]
[363778856,1748868656966,-500.0,0.00019562,2]
[363778857,1748868656976,-500.0,0.00019562,2]
[363778858,1748868656985,-500.0,0.00019562,2]
[363778859,1748868656996,-500.0,0.00019562,2]
[363778860,1748868657006,-2110.0,0.00019562,2]
[363778861,1748868657017,-500.0,0.00019588,2]
[363778862,1748868657028,-500.0,0.00019588,2]
[363778863,1748868657038,-500.0,0.00019589,2]
[363778864,1748868657048,-500.0,0.00019589,2]
[363778865,1748868657059,-500.0,0.00019589,2]
[363778866,1748868657069,-500.0,0.00019589,2]
[363778867,1748868657079,-500.0,0.00019589,2]
[363778868,1748868657089,-2110.0,0.00019589,2]
[363778869,1748868657099,-284.78,0.00019589,2]
[363778870,1748868657109,-204.10322113,0.00019589,2]
[363778871,1748868657120,-264.63276832,0.00019589,2]
[363778872,1748868657130,-420.0,0.00019589,2]
[363778873,1748868657141,-420.0,0.00019589,2]
[363778874,1748868657151,-1610.521803,0.00019589,2]
[363778875,1748868657160,-1784.984478,0.00019589,2]
[363778876,1748868657170,-497.03611016,0.00019589,2]
[363778877,1748868657179,-420.0,0.00019589,2]
[363778878,1748868657189,-420.0,0.00019589,2]
[363778879,1748868657199,-420.0,0.00019589,2]
[363778880,1748868657209,-420.0,0.00019589,2]
[363778881,1748868657219,-420.0,0.00019589,2]
[363778882,1748868657229,-420.0,0.00019589,2]
[363778883,1748868657239,-420.0,0.00019589,2]
[363778884,1748868657249,-420.0,0.00019589,2]
[363778885,1748868657259,-507.96,0.00019589,2]
[363778886,1748868657269,-420.0,0.00019589,2]
[363778887,1748868657279,-408.30962674,0.00019589,2]
[363778888,1748868657288,-420.0,0.00019589,2]
[363778889,1748868657298,-420.0,0.00019589,2]
[363778890,1748868657309,-420.0,0.00019589,2]
[363778891,1748868657319,-420.0,0.00019589,2]
[363778892,1748868657329,-420.0,0.00019589,2]
[363778893,1748868657340,-420.0,0.00019589,2]
[363778894,1748868657350,-420.0,0.00019589,2]
[363778895,1748868657360,-420.0,0.00019589,2]
[363778896,1748868657370,-420.0,0.00019589,2]
[363778897,1748868657379,-421.55454176,0.00019589,2]
[363778898,1748868657390,-420.0,0.00019589,2]
[363778899,1748868657401,-420.0,0.00019589,2]
[363778900,1748868657410,-420.0,0.00019589,2]
[363778901,1748868657420,-420.0,0.00019589,2]
[363778902,1748868657430,-420.0,0.00019589,2]
[363778903,1748868657440,-180.90126433,0.00019589,2]
[363778904,1748868657450,-420.0,0.00019589,2]
[363778905,1748868657460,-420.0,0.00019589,2]
[363778906,1748868657469,-420.0,0.00019589,2]
[363778907,1748868657479,-420.0,0.00019589,2]
[363778908,1748868657488,-420.0,0.00019589,2]
[363778909,1748868657498,-420.0,0.00019589,2]
[363778910,1748868657507,-488.38,0.00019589,2]
[363778911,1748868657517,-420.0,0.00019589,2]
[363778912,1748868657526,-420.0,0.00019589,2]
[363778913,1748868657535,-449.13399574,0.00019589,2]
[363778914,1748868657545,-420.0,0.00019589,2]
[363778915,1748868657555,-420.0,0.00019589,2]
[363778916,1748868657564,-420.0,0.00019589,2]
[363778917,1748868657573,-231.29,0.00019589,2]
[363778918,1748868657583,-420.0,0.00019589,2]
[363778919,1748868657592,-420.0,0.00019589,2]
[363778920,1748868657601,-420.0,0.00019589,2]
[363778921,1748868657610,-555.49471039,0.00019589,2]
[363778922,1748868657619,-420.0,0.00019589,2]
[363778923,1748868657628,-420.0,0.00019589,2]
[363778924,1748868657637,-883.87,0.00019589,2]
[363778925,1748868657647,-420.0,0.00019589,2]
[363778926,1748868657656,-420.0,0.00019589,2]
[363778927,1748868657667,-420.0,0.00019589,2]
[363778928,1748868657676,-420.0,0.00019589,2]
[363778929,1748868657686,-420.0,0.00019589,2]
[363778930,1748868657696,-420.0,0.00019589,2]
[363778931,1748868657707,-420.0,0.00019589,2]
[363778932,1748868657717,-420.0,0.00019589,2]
[363778933,1748868657728,-420.0,0.00019589,2]
[363778934,1748868657737,-420.0,0.00019589,2]
[363778935,1748868657747,-420.0,0.00019589,2]
[363778936,1748868657757,-420.0,0.00019589,2]
[363778937,1748868657766,-420.0,0.00019589,2]
[363778938,1748868657776,-420.0,0.00019589,2]
[363778939,1748868657786,-423.78,0.00019589,2]
[363778940,1748868657797,-420.0,0.00019589,2]
[363778941,1748868657807,-420.0,0.00019589,2]
[363778942,1748868657816,-266.43,0.00019589,2]
[363778943,1748868657830,-420.0,0.00019589,2]
[363778944,1748868657840,-420.0,0.00019589,2]
[363778945,1748868657850,-420.0,0.00019589,2]
[363778946,1748868657861,-420.0,0.00019589,2]
[363778947,1748868657871,-420.0,0.00019589,2]
[363778948,1748868657881,-215.61929304,0.00019589,2]
[363778949,1748868657891,-420.0,0.00019589,2]
[363778950,1748868657902,-420.0,0.00019589,2]
[363778951,1748868657912,-420.0,0.00019589,2]
[363778952,1748868657922,-420.0,0.00019589,2]
[363778953,1748868657931,-482.80833406,0.00019589,2]
[363778954,1748868657942,-217.6496195,0.00019589,2]
[363778955,1748868657952,-158.46,0.00019589,2]
[363778956,1748868657961,-420.0,0.00019589,2]
[363778957,1748868657971,-420.0,0.00019589,2]
[363778958,1748868657981,-420.0,0.00019589,2]
[363778959,1748868657991,-420.0,0.00019589,2]
[363778960,1748868658001,-1174.57,0.00019589,2]
[363778961,1748868658011,-420.0,0.00019589,2]
[363778962,1748868658021,-1170.95,0.00019589,2]
[363778963,1748868658031,-758.5,0.00019589,2]
[363778964,1748868658041,-233.34,0.00019589,2]
[363778965,1748868658052,-420.0,0.00019589,2]
[363778966,1748868658063,-420.0,0.00019589,2]
[363778967,1748868658074,-420.0,0.00019589,2]
[363778968,1748868658085,-4562.65,0.00019589,2]
[363778969,1748868658095,-420.0,0.00019589,2]
[363778970,1748868658105,-1744.68,0.00019589,2]
[363778971,1748868658115,-413.97,0.00019589,2]
[363778972,1748868658125,-1175.3,0.00019589,2]
[363778973,1748868658135,-9032.26,0.00019589,2]
[363778974,1748868658145,-509.54,0.00019589,2]
[363778975,1748868658155,-420.0,0.00019589,2]
[363778976,1748868658165,-1114.81,0.00019589,2]
[363778977,1748868658175,-4177.71,0.00019589,2]
[363778978,1748868658185,-420.0,0.00019589,2]
[363778979,1748868658195,-551.63,0.00019589,2]
[363778980,1748868658205,-420.0,0.00019589,2]
[363778981,1748868658215,-996.0,0.00019589,2]
[363778982,1748868658225,-420.0,0.00019589,2]
[363778983,1748868658234,-504.81,0.00019589,2]
[363778984,1748868658244,-716.31,0.00019589,2]
[363778985,1748868658253,-420.0,0.00019589,2]
[363778986,1748868658263,-420.0,0.00019589,2]
[363778987,1748868658272,-420.0,0.00019589,2]
[363778988,1748868658283,-420.0,0.00019589,2]
[363778989,1748868658293,-420.0,0.00019589,2]
[363778990,1748868658303,-420.0,0.00019589,2]
[363778991,1748868658312,-420.0,0.00019589,2]
[363778992,1748868658322,-755.86,0.00019589,2]
[363778993,1748868658331,-929.45,0.00019589,2]
[363778994,1748868658340,-420.0,0.00019589,2]
[363778995,1748868658349,-420.0,0.00019589,2]
[363778996,1748868658359,-420.0,0.00019589,2]
[363778997,1748868658370,-420.0,0.00019589,2]
[363778998,1748868658380,-1041.38,0.00019589,2]
[363778999,1748868658391,-1475.64,0.00019589,2]
[363779000,1748868658400,-420.0,0.00019589,2]
[363779001,1748868658410,-420.0,0.00019589,2]
[363779002,1748868658420,-505.0703437,0.00019589,2]
[363779003,1748868658430,-420.0,0.00019589,2]
[363779004,1748868658440,-420.0,0.00019589,2]
[363779005,1748868658450,-420.0,0.00019589,2]
[363779006,1748868658460,-420.0,0.00019589,2]
[363779007,1748868658470,-614.15,0.00019589,2]
[363779008,1748868658480,-420.0,0.00019589,2]
[363779009,1748868658490,-420.0,0.00019589,2]
[363779010,1748868658501,-420.0,0.00019589,2]
[363779011,1748868658511,-666.38,0.00019589,2]
[363779012,1748868658522,-229.22024976,0.00019589,2]
[363779013,1748868658532,-420.0,0.00019589,2]
[363779014,1748868658542,-420.0,0.00019589,2]
[363779015,1748868658552,-420.0,0.00019589,2]
[363779016,1748868658563,-420.0,0.00019589,2]
[363779017,1748868658573,-395.56040564,0.00019589,2]
[363779018,1748868658583,-768.88,0.00019589,2]
[363779019,1748868658593,-629.3,0.00019589,2]
[363779020,1748868658604,-420.0,0.00019589,2]
[363779021,1748868658614,-1774.49,0.00019589,2]
[363779022,1748868658623,-420.0,0.00019589,2]
[363779023,1748868658634,-420.0,0.00019589,2]
[363779024,1748868658643,-420.0,0.00019589,2]
[363779025,1748868658654,-420.0,0.00019589,2]
[363779026,1748868658664,-792.24,0.00019589,2]
[363779027,1748868658675,-420.0,0.00019589,2]
[363779028,1748868658685,-420.0,0.00019589,2]
[363779029,1748868658695,-420.0,0.00019589,2]
[363779030,1748868658706,-420.0,0.00019589,2]
[363779031,1748868658716,-520.88,0.00019589,2]
[363779032,1748868658727,-551.97,0.00019589,2]
[363779033,1748868658737,-188.84,0.00019589,2]
[363779034,1748868658747,-420.0,0.00019589,2]
[363779035,1748868658758,-420.0,0.00019589,2]
[363779036,1748868658769,-420.0,0.00019589,2]
[363779037,1748868658779,-420.0,0.00019589,2]
[363779038,1748868658789,-420.0,0.00019589,2]
[363779039,1748868658800,-420.0,0.00019589,2]
[363779040,1748868658811,-420.0,0.00019589,2]
[363779041,1748868658823,-420.0,0.00019589,2]
[363779042,1748868658833,-420.0,0.00019589,2]
[363779043,1748868658843,-420.0,0.00019589,2]
[363779044,1748868658854,-630.76,0.00019589,2]
[363779045,1748868658865,-3392.49,0.00019589,2]
[363779046,1748868658875,-482.48,0.00019589,2]
[363779047,1748868658885,-420.0,0.00019589,2]
[363779048,1748868658895,-420.0,0.00019589,2]
[363779049,1748868658905,-420.0,0.00019589,2]
[363779050,1748868658915,-429.5,0.00019589,2]
[363779051,1748868658926,-420.0,0.00019589,2]
[363779052,1748868658937,-420.0,0.00019589,2]
[363779053,1748868658947,-420.0,0.00019589,2]
[363779054,1748868658956,-420.0,0.00019589,2]
[363779055,1748868658965,-580.65,0.00019589,2]
[363779056,1748868658975,-420.0,0.00019589,2]
[363779057,1748868658986,-420.0,0.00019589,2]
[363779058,1748868658996,-420.0,0.00019589,2]
[363779059,1748868659006,-790.0,0.00019589,2]
[363779060,1748868659016,-420.0,0.00019589,2]
[363779061,1748868659026,-468.55,0.00019589,2]
[363779062,1748868659035,-936.76,0.00019589,2]
[363779063,1748868659045,-1765.14,0.00019589,2]
[363779064,1748868659055,-420.0,0.00019589,2]
[363779065,1748868659064,-1401.04,0.00019589,2]
[363779066,1748868659074,-498.84,0.00019589,2]
[363779067,1748868659083,-420.0,0.00019589,2]
[363779068,1748868659093,-420.0,0.00019589,2]
[363779069,1748868659102,-420.0,0.00019589,2]
[363779070,1748868659113,-420.0,0.00019589,2]
[363779071,1748868659123,-420.0,0.00019589,2]
[363779072,1748868659133,-420.0,0.00019589,2]
[363779073,1748868659143,-579.01,0.00019589,2]
[363779074,1748868659154,-420.0,0.00019589,2]
[363779075,1748868659164,-2331.26,0.00019589,2]
[363779076,1748868659175,-420.0,0.00019589,2]
[363779077,1748868659185,-573.08,0.00019589,2]
[363779078,1748868659195,-844.27,0.00019589,2]
[363779079,1748868659205,-1309.79,0.00019589,2]
[363779080,1748868659215,-420.0,0.00019589,2]
[363779081,1748868659225,-2934.36,0.00019589,2]
[363779082,1748868659236,-1763.08,0.00019589,2]
[363779083,1748868659246,-420.0,0.00019589,2]
[363779084,1748868659421,-420.0,0.00019589,2]
[363779085,1748868659434,-420.0,0.00019589,2]